bitfinex/quotes_ETHUSD_20250406
["timestamp","ask_amount","ask_price","bid_price","bid_amount"]
[1743981135184,0.6607,1560.1,1559.8,6.41102]
[1743981135383,19.23606,1560.3,1559.9,6.47475528]
[1743981135384,12.827,1560.3,1559.9,6.47475528]
[1743981135584,12.827,1560.3,1559.7,6.41116]
[1743981135738,0.6607,1560.8,1560.4,6.4085]
[1743981135940,0.6607,1560.8,1560.5,0.06407557]
[1743981136178,0.6607,1560.8,1560.4,6.47247557]
[1743981136378,0.6607,1560.8,1560.4,12.8167]
[1743981136582,51.393,1560.9,1560.3,1.2925]
[1743981136759,51.393,1560.9,1560.6,6.40755]
[1743981136964,51.393,1560.9,1560.3,1.2925]
[1743981137160,12.844,1560.9,1560.3,7.70139]
[1743981137360,12.844,1560.9,1560.6,6.40767]
[1743981137688,0.6607,1560.8,1559.8,6.41074]
[1743981137890,0.6607,1560.3,1559.3,6.41309]
[1743981138186,6.41158,1559.7,1559.2,12.82683]
[1743981138389,12.82034,1560.1,1559.6,6.41185]
[1743981138574,0.6607,1560.3,1560.0,6.41005]
[1743981138940,6.40837,1560.5,1560.0,6.41005]
[1743981139139,44.94469,1560.7,1560.2,6.40918]
[1743981139346,6.40986,1560.1,1559.3,6.41287]
[1743981139556,12.712,1560.0,1559.2,1.3005]
[1743981139853,12.712,1560.0,1559.3,6.41313]
[1743981140053,12.702,1560.5,1559.8,6.41076]
[1743981140254,12.702,1560.5,1559.6,6.41151]
[1743981140473,6.40897,1560.4,1559.9,6.41066]
[1743981140672,12.702,1560.5,1559.4,6.41248]
[1743981140873,12.702,1560.5,1560.2,6.40943]
[1743981141090,12.702,1560.5,1559.8,6.4108]
[1743981141091,0.02,1560.9,1560.3,0.06408154]
[1743981141291,6.40697,1560.8,1559.8,1.3355]
[1743981141619,6.40826,1560.5,1560.0,6.41003]
[1743981141911,6.40864,1560.4,1559.9,12.82102]
[1743981142209,6.40753,1560.7,1560.2,6.40927]
[1743981142409,6.40869,1560.4,1560.0,6.40991]
[1743981142704,6.4098,1560.2,1559.7,12.82257]
[1743981142906,0.9598,1560.9,1560.7,6.40727]
[1743981143203,0.02,1560.9,1560.2,6.40911]
[1743981143401,0.02,1560.9,1560.6,6.40769]
[1743981143607,0.32064642,1561.7,1560.8,6.40697]
[1743981143803,0.32064642,1561.7,1561.6,6.40368]
[1743981144003,1e-05,1561.9,1561.8,6.40286]
[1743981144235,12.716,1563.4,1562.4,1.3311]
[1743981144435,12.716,1563.4,1562.8,6.39877]
[1743981144735,6.14115707,1563.5,1562.8,6.39877]
[1743981144736,1e-05,1562.9,1562.8,6.39877]
[1743981144907,7.07e-06,1563.5,1563.4,6.39631]
[1743981145108,0.02,1564.9,1563.8,6.39467]
[1743981145308,0.02,1564.9,1563.4,7.72887]
[1743981145508,0.02,1564.9,1564.5,6.39143]
[1743981145713,0.02,1564.9,1564.8,6.39059]
[1743981146002,6.38814,1565.4,1564.7,6.39071]
[1743981146216,6.38814,1565.4,1564.7,6.39068]
[1743981146409,25.1586772,1565.7,1564.6,1.3326]
[1743981146608,6.3884,1565.4,1564.7,6.39079]
[1743981146816,0.63884,1565.4,1564.6,7.72391]
[1743981147130,0.63884,1565.4,1564.6,1.3326]
[1743981147333,6.38924,1565.2,1564.6,7.72397]
[1743981147533,31.5616572,1565.7,1564.6,1.3326]
[1743981147732,37.9488172,1565.7,1565.1,6.38913]
[1743981147949,0.14076949,1565.6,1565.3,6.38854]
[1743981148135,0.14076949,1565.6,1564.9,0.55]
[1743981148337,2.47277127,1565.9,1565.8,6.38651]
[1743981148742,2.47277127,1565.9,1565.7,6.38682]
[1743981148923,2.47277127,1565.9,1565.8,6.38651]
[1743981149540,2.47277127,1565.9,1565.5,6.38752]
[1743981149715,2.63786124,1565.9,1565.5,6.38752]
[1743981149910,2.47277127,1565.9,1565.5,6.38752]
[1743981150252,2.47277127,1565.9,1565.6,6.38706]
[1743981150253,0.17823351,1565.8,1565.6,6.38706]
[1743981150610,0.17823351,1565.8,1565.7,6.38691]
[1743981151121,2.47277127,1565.9,1565.6,7.81932]
[1743981151122,0.02,1565.9,1565.6,7.81932]
[1743981151323,0.17823351,1565.8,1565.5,6.38747]
[1743981151510,6.40633,1565.9,1565.3,6.38826]
[1743981151720,0.17823351,1565.7,1565.6,6.38713]
[1743981151923,0.02,1565.9,1565.6,6.45098702]
[1743981152222,0.02,1565.9,1565.2,1.432]
[1743981152223,0.02,1565.9,1565.2,7.82072]
[1743981152550,0.17823351,1565.8,1565.4,6.38795]
[1743981152763,0.17823351,1565.8,1565.6,6.38714]
[1743981152967,0.17823351,1565.8,1565.7,6.38691]
[1743981153168,6.38726,1565.7,1564.8,1.3909]
[1743981153324,0.17823351,1565.8,1564.8,7.78144]
[1743981153522,0.17823351,1565.8,1565.2,6.38878]
[1743981153760,6.38692,1565.7,1565.2,6.38878]
[1743981153957,6.38817,1565.4,1564.9,6.39017]
[1743981154125,6.38792,1565.5,1564.9,6.39016]
[1743981154465,6.38792,1565.5,1564.3,21.42278743]
[1743981154466,6.38882,1565.3,1564.6,6.39117]
[1743981154667,6.38882,1565.3,1564.1,6.39339]
[1743981154668,1.2604,1565.3,1564.1,6.39339]
[1743981154826,6.39125,1564.7,1564.1,6.39339]
[1743981155022,6.39151,1564.6,1564.0,6.39384]
[1743981155233,0.17823351,1564.5,1563.6,1.3973]
[1743981155530,12.571,1564.8,1564.7,6.391]
[1743981155731,0.17823351,1564.8,1564.7,6.391]
[1743981155955,6.38932,1565.2,1564.7,0.06388831]
[1743981156162,0.16416685,1564.8,1564.6,6.39112]
[1743981156367,39.6634,1565.3,1564.4,6.39222]
[1743981156569,0.16416685,1564.7,1564.6,6.3914]
[1743981156732,12.585,1565.4,1564.6,6.3914]
[1743981156733,12.585,1565.4,1565.2,6.38869]
[1743981156938,0.14970869,1565.3,1565.2,6.38869]
[1743981157126,7.64732,1565.7,1565.1,6.38922]
[1743981157327,0.14970869,1565.6,1564.7,6.39067]
[1743981157561,6.3912,1564.7,1564.2,6.39273]
[1743981157762,12.566,1564.7,1564.5,6.39151]
[1743981158059,0.14970869,1564.6,1564.5,6.39173]
[1743981158357,0.02,1565.9,1564.6,6.9414]
[1743981158558,6.40616,1565.9,1565.0,6.38952]
[1743981158866,6.38823,1565.4,1564.9,6.38993]
[1743981159069,12.77667,1565.4,1564.9,6.38993]
[1743981159305,1.2604,1565.4,1564.8,6.39042]
[1743981159469,6.38964,1565.1,1564.6,6.3912]
[1743981159826,7.6487,1565.4,1564.8,12.78098]
[1743981160075,7.6487,1565.4,1564.9,6.4538219]
[1743981160230,1.2604,1565.4,1564.9,0.0638919]
[1743981160433,1.2604,1565.4,1564.6,0.06388823]
[1743981160753,38.395,1565.7,1565.3,6.38837]
[1743981160955,44.78217,1565.7,1564.5,7.81751]
[1743981161130,6.39014,1565.0,1564.4,6.39196]
[1743981161330,18.98837,1565.1,1564.6,6.39124]
[1743981161668,12.599,1565.1,1565.0,6.38977]
[1743981161874,13.8574,1565.6,1565.2,6.38895]
[1743981162023,13.8574,1565.6,1565.0,0.638977]
[1743981162024,12.597,1565.6,1565.0,0.638977]
[1743981162228,12.597,1565.6,1564.9,6.39003]
[1743981162427,0.55,1565.4,1564.7,6.39067]
[1743981162655,1.2604,1565.5,1565.1,6.38901]
[1743981163040,1.2604,1565.5,1565.2,6.38879]
[1743981163239,38.395,1565.7,1565.3,0.06387537]
[1743981163439,38.395,1565.7,1565.2,7.39263543]
[1743981163440,38.395,1565.7,1565.2,6.3888]
[1743981163643,38.395,1565.7,1565.4,12.77604]
[1743981163871,12.569,1565.9,1565.7,6.38668]
[1743981164048,12.569,1565.9,1565.7,12.77344]
[1743981164253,12.569,1565.9,1565.4,6.38791]
[1743981164466,0.02,1565.9,1565.8,6.38651]
[1743981164680,0.02,1565.9,1565.8,0.06384367]
[1743981164973,1e-05,1565.9,1565.6,3.0]
[1743981165174,1.2804,1566.9,1566.2,6.38488]
[1743981165483,0.02,1566.9,1566.8,6.38243]
[1743981165689,0.02,1566.9,1566.8,6.44624659]
[1743981165847,0.14671671,1566.9,1566.8,6.38243]
[1743981166043,0.14671671,1566.9,1566.3,6.38419]
[1743981166270,6.38368,1566.5,1566.0,6.38533]
[1743981166578,6.383,1566.7,1566.2,6.38472]
[1743981166796,0.12671671,1566.4,1566.0,6.38569]
[1743981167078,0.55,1566.1,1565.1,7.75396]
[1743981167279,0.12671671,1566.3,1565.5,6.38773]
[1743981167495,20.17708,1566.5,1566.0,6.38564]
[1743981167698,0.12671671,1566.2,1565.9,6.38598]
[1743981167850,6.3834,1566.6,1566.1,6.38528]
[1743981168184,0.12671671,1566.5,1566.3,6.38409]
[1743981168345,0.12671671,1566.5,1565.2,0.775396]
[1743981168546,0.02,1566.9,1565.4,6.38795]
[1743981168547,6.38488,1566.2,1565.4,6.38795]
[1743981168745,3.55,1566.1,1564.8,10.00294414]
[1743981168958,3.55,1566.1,1565.3,6.38837]
[1743981168959,6.3867,1565.8,1565.3,6.38837]
[1743981169177,6.3867,1565.8,1565.2,6.38893]
[1743981169178,0.12671671,1566.0,1565.2,7.74153]
[1743981169348,1.2604,1566.3,1565.2,7.74153]
[1743981169349,6.38491,1566.2,1565.7,6.38671]
[1743981169548,0.12671671,1565.9,1565.7,6.38683]
[1743981169750,6.38537,1566.1,1565.7,6.38683]
[1743981170056,6.38532,1566.1,1565.7,6.38683]
[1743981170255,0.12671671,1566.0,1565.4,6.3881]
[1743981170455,51.36371671,1566.0,1565.0,6.38977]
[1743981170669,57.74956671,1566.0,1565.5,6.38756]
[1743981170874,57.74956671,1566.0,1565.5,6.38765]
[1743981171069,57.74956671,1566.0,1565.3,6.38818]
[1743981171070,0.55,1565.9,1565.3,6.38818]
[1743981171298,0.12758445,1565.9,1565.6,6.38731]
[1743981171497,0.12758445,1565.9,1565.7,6.38674]
[1743981171806,0.12758445,1565.9,1565.8,6.38651]
[1743981171983,0.12758445,1565.9,1565.7,6.38674]
[1743981172188,12.845,1566.5,1566.4,6.38406]
[1743981172386,12.845,1566.5,1566.2,6.38484]
[1743981172702,12.845,1566.5,1566.3,6.38431]
[1743981172901,19.22883,1566.5,1566.1,6.38524]
[1743981173097,6.38522,1566.2,1565.7,6.38674]
[1743981173301,12.77011,1566.2,1565.7,6.38691]
[1743981173474,6.38511,1566.2,1565.8,6.38633]
[1743981173679,9.38443,1566.4,1565.9,6.44973271]
[1743981173680,6.38433,1566.4,1565.9,6.44973271]
[1743981173874,12.797,1566.3,1565.9,12.83564271]
[1743981174179,12.797,1566.3,1566.0,6.38542]
[1743981174381,19.18171,1566.3,1565.9,6.38592]
[1743981174576,12.797,1566.3,1566.1,6.385]
[1743981174982,38.363,1566.7,1566.4,6.38384]
[1743981175289,38.363,1566.7,1566.4,6.38383]
[1743981175503,38.363,1566.7,1566.5,6.38362]
[1743981175672,6.38353,1566.6,1566.2,6.3848]
[1743981175868,6.38406,1566.4,1565.6,1.3653]
[1743981176102,6.38406,1566.4,1565.4,6.38784]
[1743981176103,6.38619,1565.9,1565.4,6.38784]
[1743981176303,6.38751,1565.6,1565.1,6.38913]
[1743981176504,0.55,1565.7,1564.8,7.82135]
[1743981176679,19.14652,1565.6,1565.1,6.38917]
[1743981176878,19.14652,1565.6,1564.7,3.0]
[1743981176879,0.55,1565.5,1564.7,3.0]
[1743981177079,12.759,1565.6,1565.3,6.38838]
[1743981177281,12.759,1565.6,1565.5,6.38773]
[1743981177516,12.759,1565.6,1565.4,6.38803]
[1743981177873,12.759,1565.6,1565.4,12.83989326]
[1743981178210,12.759,1565.6,1564.5,6.39181]
[1743981178368,12.759,1565.6,1565.2,6.38866]
[1743981178572,12.759,1565.6,1565.5,6.38773]
[1743981179338,12.759,1565.6,1564.9,6.39018]
[1743981179517,12.759,1565.6,1565.2,6.38862]
[1743981179700,12.759,1565.6,1565.0,6.38977]
[1743981179701,6.38785,1565.5,1565.0,6.38944]
[1743981179899,19.14656,1565.6,1565.1,6.38896]
[1743981180222,12.759,1565.6,1565.4,6.38799]
[1743981180379,39.7143,1565.8,1565.7,6.38691]
[1743981180714,6.38974,1565.1,1564.6,0.639181]
[1743981181007,12.674,1565.0,1564.9,6.39018]
[1743981181516,12.674,1565.0,1564.8,6.39031]
[1743981181847,19.61377,1565.0,1564.9,0.59380779]
[1743981181972,3.0,1564.7,1563.8,6.39449]
[1743981182171,6.39233,1564.4,1563.9,6.39406]
[1743981182403,12.633,1564.3,1563.9,6.39406]
[1743981182604,19.02587,1564.3,1563.8,6.39445]
[1743981182815,13.9903,1564.3,1563.9,6.39403]
[1743981183131,6.39304,1564.2,1563.4,1.4375]
[1743981183318,6.94304,1564.2,1563.7,6.39479]
[1743981183467,6.94304,1564.2,1563.6,6.39544]
[1743981183672,6.39386,1564.0,1563.1,1.4974]
[1743981183927,6.3931,1564.2,1563.1,7.89457]
[1743981184228,13.9903,1564.3,1564.0,6.39366]
[1743981184421,38.37,1564.4,1564.2,6.39304]
[1743981184625,38.37,1564.4,1564.2,6.39264]
[1743981184813,38.37,1564.4,1564.3,6.39263]
[1743981184990,1.3573,1565.1,1564.4,6.39219]
[1743981185188,12.528,1564.9,1564.0,6.39377]
[1743981185389,12.528,1564.9,1564.4,6.39189]
[1743981185637,12.528,1564.9,1564.8,6.39059]
[1743981185928,6.39087,1564.8,1564.3,12.78498]
[1743981186083,12.528,1564.9,1564.5,6.39176]
[1743981186287,18.91834,1564.9,1564.4,6.39197]
[1743981186498,18.91834,1564.9,1564.4,12.84785265]
[1743981186717,18.91834,1564.9,1564.5,6.39157]
[1743981186718,12.528,1564.9,1564.5,6.39157]
[1743981186922,18.91843,1564.9,1564.5,6.39157]
[1743981187124,18.91818,1564.9,1564.4,6.39221]
[1743981187325,12.528,1564.9,1564.6,6.39135]
[1743981187528,1.3573,1565.1,1564.8,6.39059]
[1743981187840,6.39103,1564.7,1564.0,1.278765]
[1743981188005,6.39158,1564.6,1564.1,12.78668]
[1743981188206,7.74952,1564.4,1563.8,6.39436]
[1743981188400,7.74952,1564.4,1563.9,6.39401]
[1743981188600,12.405,1564.5,1564.1,6.3931]
[1743981188838,6.39238,1564.4,1563.9,6.39422]
[1743981189009,6.39238,1564.4,1563.9,6.39403]
[1743981189331,6.39238,1564.4,1564.0,6.39383]
[1743981189741,6.39265,1564.3,1563.9,6.39403]
[1743981189943,1.3573,1564.7,1564.2,6.39267]
[1743981190164,12.328,1564.6,1564.5,6.39181]
[1743981190537,6.39206,1564.5,1564.1,6.39342]
[1743981190749,6.39454,1563.9,1563.7,0.47417323]
[1743981191066,18.69428,1563.9,1563.7,0.47417323]
[1743981191270,6.39467,1563.8,1563.7,0.47417323]
[1743981191420,6.39612,1563.5,1563.1,0.02]
[1743981191623,0.55,1563.7,1563.1,0.02]
[1743981191878,0.55,1563.7,1563.3,6.3967]
[1743981192082,6.94514,1563.7,1563.2,6.39695]
[1743981192226,6.39511,1563.7,1563.2,6.39713]
[1743981192559,6.39197,1564.5,1563.2,6.39713]
[1743981192560,12.274,1564.4,1563.8,6.39467]
[1743981192768,44.77286,1564.3,1563.8,6.39449]
[1743981192920,38.38,1564.3,1563.9,6.39412]
[1743981193121,38.38,1564.3,1563.8,6.39464]
[1743981193327,6.3932,1564.2,1563.7,6.39489]
[1743981193660,6.39408,1564.0,1563.6,6.39545]
[1743981193837,12.78818,1564.0,1563.5,6.3959]
[1743981194032,1.9073,1563.8,1563.1,3.02]
[1743981194251,18.61512,1563.7,1563.3,6.39649]
[1743981194424,12.22,1563.7,1563.3,6.39649]
[1743981194625,12.22,1563.7,1563.5,6.3959]
[1743981194825,1.3573,1564.2,1563.9,6.39397]
[1743981195021,1.3573,1564.2,1563.9,6.39403]
[1743981195459,38.38,1564.3,1564.0,12.78735]
[1743981195675,1.3573,1564.1,1563.3,0.639649]
[1743981195830,18.62524,1564.0,1563.1,1.4683]
[1743981196025,0.06873414,1563.9,1563.6,6.39544]
[1743981196225,0.06873414,1563.9,1563.3,0.06394955]
[1743981196421,6.39514,1563.7,1563.3,6.39655]
[1743981196858,0.06873414,1563.7,1563.1,6.41739]
[1743981197070,0.06873414,1563.7,1563.4,6.39598]
[1743981197375,6.94429,1563.9,1563.3,6.39658]
[1743981197376,6.39501,1563.8,1563.3,6.39658]
[1743981197579,0.01873414,1563.8,1563.3,0.639658]
[1743981197743,12.168,1563.9,1563.7,6.39477]
[1743981198078,38.38,1564.3,1564.0,6.39377]
[1743981198242,12.152,1564.5,1564.1,6.4573396]
[1743981198437,12.152,1564.5,1564.1,12.78665]
[1743981198643,7.7481,1564.8,1564.3,6.39239]
[1743981198843,18.54499414,1564.7,1564.3,6.39263]
[1743981199146,12.135,1564.7,1564.3,6.39223]
[1743981199342,12.135,1564.7,1564.4,6.39198]
[1743981199553,38.393,1565.0,1564.1,6.39345]
[1743981199554,38.393,1565.0,1564.7,6.39082]
[1743981199875,38.393,1565.0,1564.9,6.39018]
[1743981200378,38.393,1565.0,1564.7,6.39083]
[1743981200549,38.393,1565.0,1564.9,6.39018]
[1743981201083,12.051,1565.3,1564.9,6.39018]
[1743981201385,48.50467,1565.7,1565.0,6.38966]
[1743981201386,12.77586,1565.5,1565.0,6.38966]
[1743981201586,12.77586,1565.5,1565.0,6.38953]
[1743981201587,12.06073414,1565.4,1565.0,6.38953]
[1743981201754,7.7449,1565.6,1565.0,6.38953]
[1743981201755,1.3573,1565.6,1565.0,0.638953]
[1743981201972,3.72244,1565.7,1565.5,6.38773]
[1743981202168,3.72244,1565.7,1565.6,6.38732]
[1743981202664,3.72244,1565.7,1565.6,9.38732]
[1743981203065,38.389,1566.3,1565.8,6.38651]
[1743981203066,42.11144,1566.3,1565.8,6.38651]
[1743981203264,0.01873414,1566.2,1565.8,6.38651]
[1743981203491,6.38508,1566.2,1565.7,6.38677]
[1743981203790,42.11144,1566.3,1565.8,6.38651]
[1743981204293,3.72244,1566.3,1565.8,9.38651]
[1743981204505,3.72244,1566.3,1565.8,6.38651]
[1743981205475,6.40312414,1566.4,1565.6,6.38727]
[1743981205476,6.38561,1566.1,1565.6,6.38727]
[1743981205686,6.38582,1566.0,1565.5,6.38753]
[1743981205974,0.03873414,1565.9,1565.5,6.38751]
[1743981206316,6.38694,1565.7,1565.3,6.38839]
[1743981206722,6.38694,1565.7,1565.0,1.4182]
[1743981206723,3.01873414,1565.6,1565.0,1.4182]
[1743981206876,7.69516,1565.4,1564.6,7.73324]
[1743981207208,11.831,1565.5,1565.2,6.38859]
[1743981207374,11.831,1565.5,1565.2,6.38869]
[1743981207579,11.831,1565.5,1565.1,6.38936]
[1743981208108,11.831,1565.5,1564.9,3.0]
[1743981208109,11.831,1565.5,1565.3,6.38839]
[1743981208277,0.02,1565.9,1565.6,6.38732]
[1743981208476,0.02,1565.9,1565.3,0.06387634]
[1743981208477,0.02,1565.9,1565.8,6.38651]
[1743981208676,0.02,1565.9,1565.7,6.38668]
[1743981208913,0.02,1565.9,1565.7,12.7734]
[1743981209115,0.02,1565.9,1565.8,6.38651]
[1743981209278,0.02,1565.9,1565.8,10.663829]
[1743981209813,0.02,1565.9,1565.8,12.15057382]
[1743981210016,0.02,1565.9,1565.8,12.086729]
[1743981210394,0.02,1565.9,1565.8,10.80941]
[1743981210785,0.02,1565.9,1565.4,1.3643]
[1743981210977,0.02,1565.9,1565.3,0.638839]
[1743981210978,18.6354,1565.9,1565.3,6.38818]
[1743981211179,6.95549414,1565.8,1565.3,6.38818]
[1743981211492,6.38753,1565.6,1565.2,6.38884]
[1743981211690,12.77417,1565.7,1565.2,6.38884]
[1743981211896,0.01873414,1565.6,1564.9,6.39018]
[1743981212218,0.55,1565.4,1564.4,7.7565]
[1743981212425,0.55,1565.4,1564.8,6.39026]
[1743981212426,3.0,1565.2,1564.8,6.39026]
[1743981212726,11.656,1565.3,1565.0,6.38966]
[1743981212918,18.0447,1565.3,1564.9,6.39013]
[1743981213127,11.656,1565.3,1565.0,6.38945]
[1743981213328,18.04486,1565.3,1564.8,6.39053]
[1743981213492,6.38897,1565.2,1564.8,6.39053]
[1743981213691,6.38897,1565.2,1564.6,6.39125]
[1743981213692,0.01873414,1565.2,1564.6,6.39125]
[1743981213909,11.656,1565.3,1565.1,6.38899]
[1743981214112,11.656,1565.3,1565.1,12.77816]
[1743981214424,1.3067,1565.5,1565.2,12.77749]
[1743981214620,1.3067,1565.5,1564.9,9.39014]
[1743981214826,0.55,1565.3,1564.4,1.3643]
[1743981215127,6.3918,1564.6,1564.1,1.4051]
[1743981215299,12.80264414,1564.5,1564.0,6.39369]
[1743981215497,6.39224,1564.4,1563.9,6.39423]
[1743981215713,6.39339,1564.2,1563.6,6.39535]
[1743981215895,1.3067,1564.5,1563.9,6.39388]
[1743981216116,6.3932,1564.2,1563.7,7.034445]
[1743981216281,6.3932,1564.2,1563.5,1.3959]
[1743981216282,0.55,1564.1,1563.6,6.39548]
[1743981216486,6.39386,1564.0,1563.6,6.39542]
[1743981216700,17.90486,1564.0,1563.6,6.39542]
[1743981216896,1.87189693,1563.9,1563.1,0.02]
[1743981217097,1.87189693,1563.9,1563.1,6.41752]
[1743981217309,0.55,1563.6,1563.1,0.02]
[1743981217584,0.01519693,1563.5,1563.1,6.41732]
[1743981217784,0.55,1563.5,1563.1,6.41732]
[1743981217986,6.96112693,1563.5,1563.1,6.41732]
[1743981218322,0.55,1563.7,1563.2,6.46080946]
[1743981218622,4.3067,1563.9,1563.2,0.06396946]
[1743981218809,1.3067,1563.9,1563.5,6.39566]
[1743981219118,1.3067,1563.9,1563.5,6.39583]
[1743981219325,1.3067,1563.9,1563.6,6.39545]
[1743981219617,6.39443,1563.9,1563.5,6.3959]
[1743981219806,24.25045,1564.0,1563.5,6.39573]
[1743981220117,6.3951,1563.7,1563.3,6.39668]
[1743981220286,6.39534,1563.7,1563.3,6.39668]
[1743981220487,6.39442,1563.9,1563.1,0.02]
[1743981220710,6.39469,1563.8,1563.4,6.39616]
[1743981221316,6.39469,1563.8,1563.4,12.7923]
[1743981221512,6.39469,1563.8,1563.4,12.79226]
[1743981221823,6.39442,1563.9,1563.4,6.39612]
[1743981221988,11.462,1564.0,1563.4,1.279283]
[1743981222193,56.11753,1564.1,1563.7,6.39497]
[1743981222514,56.11759,1564.1,1563.4,2.612683]
[1743981222709,49.698,1564.1,1563.7,6.39486]
[1743981223024,56.09173,1564.1,1563.6,6.39537]
[1743981223322,6.39482,1563.8,1563.3,6.39651]
[1743981223485,6.39524,1563.7,1563.2,6.39691]
[1743981223688,6.39524,1563.7,1563.3,6.3967]
[1743981223887,38.373,1564.1,1563.8,6.39458]
[1743981224111,38.373,1564.1,1563.1,11.467925]
[1743981224283,6.39473,1563.8,1563.3,12.79304]
[1743981224500,12.78965,1563.8,1563.3,6.39647]
[1743981224803,6.39469,1563.8,1563.4,6.46012608]
[1743981224999,13.33804,1564.0,1563.4,6.46021608]
[1743981225213,6.94392,1564.0,1563.5,6.39576]
[1743981225521,6.39449,1563.9,1563.5,6.39576]
[1743981225723,6.94392,1564.0,1563.5,6.39574]
[1743981225910,6.39528,1563.7,1563.2,6.39687]
[1743981226092,6.39557,1563.6,1563.2,6.39687]
[1743981226294,6.3959,1563.5,1563.1,7.82608]
[1743981226493,6.39686,1563.3,1563.1,0.02]
[1743981227088,6.39638,1563.4,1562.3,1.4592]
[1743981227089,8.25383,1563.2,1562.3,1.4592]
[1743981227366,0.55,1562.8,1562.1,0.02]
[1743981227521,11.191,1562.7,1562.5,6.39972]
[1743981227721,6.94822,1563.0,1562.5,12.79939]
[1743981228237,6.94822,1563.0,1562.4,6.40006]
[1743981228238,6.39858,1562.9,1562.4,6.40006]
[1743981228433,11.18,1563.1,1562.4,6.40006]
[1743981228434,17.57759,1563.1,1562.4,0.640006]
[1743981228765,10.574,1563.9,1563.0,6.3977]
[1743981228766,18.84766,1563.5,1563.0,6.3977]
[1743981228930,12.4517,1563.5,1563.1,12.79462]
[1743981229322,12.4517,1563.5,1563.2,6.3971]
[1743981229867,18.84765,1563.5,1563.1,6.39731]
[1743981230172,11.145,1563.5,1563.2,0.06396684]
[1743981230459,11.145,1563.5,1563.2,6.39684]
[1743981230665,11.145,1563.5,1563.3,6.46047603]
[1743981230870,11.145,1563.5,1563.3,6.39651]
[1743981231038,11.145,1563.5,1563.3,6.39649]
[1743981231370,11.145,1563.5,1563.4,6.39631]
[1743981231864,11.145,1563.5,1563.1,6.39733]
[1743981232034,11.145,1563.5,1562.6,7.8078]
[1743981232365,23.93708,1563.5,1563.1,6.39729]
[1743981232765,11.145,1563.5,1562.8,6.39877]
[1743981232924,7.7014,1563.8,1563.4,6.3963]
[1743981233124,10.994,1563.7,1563.4,6.3963]
[1743981233452,1.3067,1563.8,1563.0,6.39795]
[1743981233761,10.975,1564.0,1563.5,6.39577]
[1743981233939,10.975,1564.0,1563.3,6.39645]
[1743981234266,9.94428,1563.9,1563.1,6.39748]
[1743981234430,12.79224,1563.5,1563.1,6.39748]
[1743981234637,1.8146,1563.6,1562.8,7.8077]
[1743981234978,1.2646,1563.6,1563.2,12.79375]
[1743981235133,1.2646,1563.6,1563.3,6.39653]
[1743981235333,14.05343,1563.9,1563.5,6.3959]
[1743981235545,7.65894,1563.9,1563.4,6.39625]
[1743981235745,6.39587,1563.6,1563.1,6.39713]
[1743981235943,6.39603,1563.5,1563.1,6.39723]
[1743981236150,12.79221,1563.5,1563.1,6.39723]
[1743981236377,6.39603,1563.5,1563.1,6.39723]
[1743981236670,6.39603,1563.5,1563.1,12.79464]
[1743981236880,6.94535,1563.7,1563.3,6.39655]
[1743981237045,6.39562,1563.6,1563.1,6.39714]
[1743981237240,12.79146,1563.6,1563.2,6.39708]
[1743981237581,6.39604,1563.5,1563.1,12.79448]
[1743981237784,6.39549,1563.6,1563.2,6.3971]
[1743981237940,12.79121,1563.6,1563.2,6.3971]
[1743981238277,6.39661,1563.4,1562.9,6.39836]
[1743981238578,6.39661,1563.4,1562.8,1.4091]
[1743981238579,17.20061,1563.4,1563.1,6.39753]
[1743981238885,10.804,1563.4,1563.3,6.39672]
[1743981239375,0.55,1563.7,1563.0,6.39762]
[1743981239596,0.55,1563.5,1562.9,12.79639]
[1743981239754,6.39653,1563.4,1563.1,6.39754]
[1743981240655,6.39653,1563.4,1563.0,12.79547]
[1743981240852,6.39653,1563.4,1563.0,6.39777]
[1743981240853,6.39655,1563.4,1563.0,6.39777]
[1743981241059,1.2646,1563.3,1563.1,6.39732]
[1743981241300,1.2646,1563.6,1563.1,6.39754]
[1743981241598,1.2646,1563.6,1563.4,6.39617]
[1743981241802,24.04137,1563.7,1563.3,6.39657]
[1743981241965,6.39661,1563.4,1563.0,6.39793]
[1743981242176,0.55,1563.6,1562.8,3.0]
[1743981242405,10.701,1563.7,1562.9,6.46232901]
[1743981242609,40.14258366,1563.9,1563.6,6.39521]
[1743981242796,40.14258366,1563.9,1563.1,6.39741]
[1743981243102,6.39647,1563.4,1563.0,6.39777]
[1743981243312,12.79225,1563.5,1563.1,6.39732]
[1743981243511,10.685,1563.4,1562.8,6.39877]
[1743981243697,10.685,1563.4,1563.1,6.39733]
[1743981243897,10.685,1563.4,1562.7,1.3476]
[1743981243898,10.685,1563.4,1563.2,6.39689]
[1743981244210,17.08144,1563.4,1563.0,6.39772]
[1743981244591,17.08144,1563.4,1563.1,6.39739]
[1743981244787,6.39497,1563.8,1563.2,0.06396859]
[1743981244990,45.6726,1563.9,1563.2,0.06396859]
[1743981244991,23.41784,1563.7,1563.3,6.39655]
[1743981245188,17.0224,1563.7,1563.3,12.79309]
[1743981245513,17.02228,1563.7,1563.3,12.79309]
[1743981245677,10.627,1563.7,1563.6,6.39549]